[Event "39th OBSenEM 2023"]
[Site "Berlin"]
[Date "2023.01.25"]
[Round "2.3"]
[White "Ahlberg, Matthias"]
[Black "Jaeger, Andre"]
[Result "1/2-1/2"]
[ECO "B40"]
[WhiteElo "2207"]
[BlackElo "1898"]
[Annotator "TA"]
[PlyCount "192"]
[EventDate "2023.01.24"]
[EventType "swiss"]
[EventCountry "GER"]
[SourceTitle "playchess.com"]
[Source "ChessBase"]
[SourceQuality "1"]
[TimeControl "40/5400+30:1800+30"]

{[%evp 10,192,18,15,16,0,0,0,6,-18,-16,-23,-22,-40,-11,-13,32,45,66,44,99,102,103,51,62,11,15,13,18,10,11,-10,-19,-13,-19,-28,0,-6,-19,-23,14,-34,129,132,165,148,382,56,56,45,164,164,164,164,164,164,164,120,474,152,164,164,164,164,164,164,164,164,164,164,164,164,164,85,85,85,85,85,85,66,73,0,65,22,66,10,85,85,85,79,266,79,259,252,319,67,73,36,120,57,73,33,79,79,79,79,79,78,78,78,78,78,145,113,129,79,91,79,79,78,78,78,78,78,78,78,78,78,78,78,79,0,79,79,118,79,79,0,79,78,79,79,79,78,79,78,78,78,78,78,78,78,78,30,30,0,78,0,30,0,78,78,78,78,78,78,78,78,78,78,78,78,78,78,78,0,78,0,78,0,0,0,78,8,78]} 1. e4 {[%emt 0:05:02]} c5 {[%emt 0:00:03]} 2. Nc3 {[%emt 0:00:08]} e6 {[%emt 0:00:07]} 3. Nf3 {[%emt 0:00:12]} a6 {[%emt 0:00:08]} 4. g3 {[%emt 0:00:39]} b5 {[%emt 0:00:38]} 5. Bg2 {[%emt 0:02:45]} Bb7 {[%emt 0:02:25]} 6. d3 {[%emt 0:02:02]} d6 {[%emt 0:02:41] B40: Sicilian: 2...e6, Unusual lines.} 7. Be3 {[%emt 0:00:29]} Nd7 {[%emt 0:02:58]} 8. O-O {[%emt 0:02:04]} Be7 {[%emt 0:05:21]} 9. h3 {[%emt 0:01:11]} Qc7 {[%emt 0:09:39]} 10. Nh2 {[%emt 0:05:42]} Ngf6 {[%emt 0:05:51]} 11. f4 {[%emt 0:07:39] [#]} g6 $146 {[%emt 0:02:03]} (11... d5 $5 {[%cal Rd5d4]} 12. e5 d4 13. Bxb7 (13. exf6 Nxf6 14. Bxb7 Qxb7 $11) 13... Qxb7 14. exf6 Nxf6 $11) ({Predecessor:} 11... b4 12. Ne2 Nb6 13. b3 d5 14. e5 Nfd7 15. d4 cxd4 16. Nxd4 Bc5 17. Nhf3 g6 {0-1 Saraos,C (1742)-Quizon,D (2035) PHI-ch U10 San Antonio 2014 (7)}) 12. g4 {[%emt 0:04:58][%cal Bg3g4,Bg4g5][%mdl 32]} h5 {[%emt 0:03:52]} 13. g5 {[%emt 0:01:21]} Ng8 {[%emt 0:02:40]} 14. d4 {[%emt 0:04:11]} cxd4 {[%emt 0:05:18]} (14... Rc8 $14) 15. Qxd4 $16 {[%emt 0:03:51]} Rh7 {[%emt 0:07:05]} 16. Qd2 {[%emt 0:04:49]} (16. Rf2 $16) 16... Nb6 {[%emt 0:07:43]} 17. b3 {[%emt 0:09:23] Prevents Nc4} (17. Bxb6 $14 Qxb6+ 18. Kh1) 17... Rc8 $11 {[%emt 0:00:57]} 18. Nd1 {[%emt 0:02:04]} d5 {[%emt 0:03:27]} 19. e5 {[%emt 0:08:30]} Bc5 {[%emt 0:00:21][%cal Od5d4]} 20. Rc1 {[%emt 0:01:42]} Ne7 {[%emt 0:01:04][%cal Bg8e7,Be7f5,Bf5e3][%mdl 32]} 21. Nf3 {[%emt 0:05:42]} Nf5 {[%emt 0:00:59]} 22. c3 {[%emt 0:04:07][%cal Bc2c3,Bc3d4,Bd4c5][%mdl 32]} Rh8 {[%emt 0:06:17]} 23. Nd4 {[%emt 0:01:47]} Nxe3 {[%emt 0:08:10]} 24. Nxe3 {[%emt 0:00:22]} Ke7 {[%emt 0:01:55]} (24... Kf8 {simplifies} 25. Kh1 Kg8 26. Rc2 Nd7) 25. Rc2 {[%emt 0:01:33]} (25. Kh1 $11 {is superior.}) 25... Bxd4 $2 {[%emt 0:02:36]} (25... Rhe8 $15 {stays ahead.}) 26. cxd4 $16 {[%emt 0:02:37]} Qb8 {[%emt 0:00:02]} 27. Qb4+ {[%emt 0:01:04]} Kd7 $2 {[%emt 0:00:29]} (27... Kd8 $16 28. Rfc1 Rxc2 29. Rxc2 Nd7) 28. Rc5 $2 {[%emt 0:01:53]} (28. f5 $18 {Intending fxe6+ and mate.} gxf5 29. Rcf2) 28... Rxc5 $1 $14 {[%emt 0:02:26]} 29. dxc5 {[%emt 0:00:37]} Na8 {[%emt 0:00:54] Black is weak on the dark squares} (29... Nc8 $14) 30. Nc2 $18 {[%emt 0:00:56]} Rc8 {[%emt 0:01:47]} 31. Nd4 {[%emt 0:01:11]} Bc6 {[%emt 0:00:55]} 32. Qa3 {[%emt 0:03:21]} Nc7 {[%emt 0:04:13]} 33. b4 {[%emt 0:00:55]} Qa7 $2 {[%emt 0:00:18][%mdl 8192]} (33... a5 $16 {is more resistant.}) 34. Nb3 $2 {[%emt 0:01:45]} (34. Qd3 $18 {[%cal Of4f5]} Qa8 35. f5 gxf5 36. Rxf5) 34... Ra8 {[%emt 0:02:15]} 35. Rd1 {[%emt 0:01:25]} Ne8 {[%emt 0:01:51]} 36. Na5 {[%emt 0:04:13]} Nc7 {[%emt 0:00:24]} 37. Qd3 {[%emt 0:01:20]} Rc8 {[%emt 0:03:02]} 38. h4 {[%emt 0:01:59]} Qa8 {[%emt 0:00:29]} 39. Qd4 {[%emt 0:00:40]} Ne8 {[%emt 0:01:17]} 40. Bf1 {[%emt 0:01:28]} Ng7 {[%emt 0:00:48]} 41. Qf2 {[%emt 0:30:49]} (41. Bd3 $18) 41... Nf5 $16 {[%emt 0:30:47]} 42. Bd3 {[%emt 0:00:34]} Ne7 {[%emt 0:00:26]} 43. Bc2 {[%emt 0:00:24]} Ke8 {[%emt 0:00:47]} 44. Nb3 {[%emt 0:01:05]} Rd8 {[%emt 0:00:00][%cal Od5d4]} 45. Rd4 {[%emt 0:00:00]} (45. a3 $16) 45... Qb7 {[%emt 0:00:00]} (45... Bd7 $1 $11) 46. Qd2 {[%emt 0:00:00]} Qc7 {[%emt 0:06:02]} 47. Rd3 {[%emt 0:00:00]} ({Better is} 47. a3 $14) 47... Nf5 {[%emt 0:00:00]} (47... Bd7 $1 $11) 48. Rh3 $36 {[%emt 0:00:00][%mdl 2048] Black must now prevent Bxf5. Keeping Black busy.} Ne7 {[%emt 0:00:00][%cal Od5d4]} 49. Nd4 {[%emt 0:00:00]} Qd7 $2 {[%emt 0:00:00]} (49... Kf8 $16 {is a better defense.}) 50. Bd3 $2 {[%emt 0:00:00]} (50. f5 $18 gxf5 51. Bd1) 50... Ra8 $2 {[%emt 0:00:00]} (50... Qc7 $16 {keeps fighting.}) 51. Qe2 {[%emt 0:00:00][%cal Of4f5]} Kf8 {[%emt 0:00:00]} 52. Kf2 $2 {[%emt 0:00:00]} (52. f5 $1 $18 {[%cal Rf5e6]} exf5 53. e6) 52... Kg7 {[%emt 0:00:00]} 53. Rh1 {[%emt 0:00:00][%cal Of4f5]} Ra7 {[%emt 0:00:00]} (53... Bb7 $14) 54. Rb1 {[%emt 0:00:00] White is much more active.} (54. f5 $1 $16 {[%cal Rf5f6] f6+ would be deadly.} exf5 55. Kg2 (55. e6 Qc7 $11)) 54... Ra8 {[%emt 0:00:00]} 55. Rb3 {[%emt 0:00:00]} (55. a3 {seems wilder.} Bb7 56. Kg3 Nc6 57. Nf3) 55... Kg8 {[%emt 0:00:00]} (55... a5 $14) 56. Ra3 {[%emt 0:00:00]} Kg7 {[%emt 0:00:00]} 57. Ra5 {[%emt 0:00:00]} Bb7 {[%emt 0:00:00]} 58. Ke3 {[%emt 0:00:00]} Nc6 {[%emt 0:00:00]} 59. Nxc6 {[%emt 0:00:00]} Qxc6 {[%emt 0:00:00]} 60. Kd4 $1 {[%emt 0:00:00]} Kf8 {[%emt 0:00:00]} (60... Bc8 $142) 61. Qc2 {[%emt 0:00:00]} Kg7 {[%emt 0:00:00]} 62. Qd1 {[%emt 0:00:00]} (62. a4 $142 {[%cal Ra4b5]} bxa4 63. Qxa4) 62... Rb8 {[%emt 0:00:00]} 63. Bc2 {[%emt 0:00:00]} Bc8 {[%emt 0:08:30]} 64. Qa1 {[%emt 0:00:00]} Bd7 {[%emt 0:00:00]} 65. Qb2 {[%emt 0:00:00]} Qb7 {[%emt 0:00:00]} 66. Qa3 {[%emt 0:00:00] The board is on fire.} Ra8 {[%emt 0:00:00]} 67. Qc3 {[%emt 0:01:40]} Rb8 {[%emt 0:00:00]} 68. Bd1 {[%emt 0:01:00]} Bc6 {[%emt 0:00:00]} 69. Qe3 {[%emt 0:01:50]} Bd7 {[%emt 0:00:00]} 70. Kc3 {[%emt 0:00:24]} (70. Bf3 $16) 70... Bc6 {[%emt 0:00:00]} (70... d4+ $1 $11 71. Qxd4 (71. Kxd4 $2 Qd5+ {[%mdl 64] Skewer} 72. Kc3 Qxd1 $19) 71... Bc8) 71. Qd4 {[%emt 0:00:07]} Bd7 {[%emt 0:00:00]} 72. Be2 {[%emt 0:00:19]} Bc6 {[%emt 0:04:30]} 73. Qd1 {[%emt 0:01:58]} ({White should play} 73. Kb3 $16) 73... Kf8 {[%emt 0:00:00]} (73... d4+ $1 $11 74. Qxd4 (74. Kxd4 $2 {too greedy.} Rd8+ {[%mdl 64] Skewer} 75. Kc3 Rxd1 $19) 74... Ra8) 74. Kd4 {[%emt 0:00:45][%cal Oe2h5]} Ke7 {[%emt 0:00:00]} 75. Ra3 {[%emt 0:01:37]} Ra8 {[%emt 0:00:00]} 76. Qd2 {[%emt 0:02:45]} Kf8 {[%emt 0:00:00]} 77. Bd3 {[%emt 0:00:12]} Ke7 {[%emt 0:02:30]} 78. Qc2 {[%emt 0:00:56][%cal Od3g6] Hoping for Bxg6!} Kf8 {[%emt 0:00:00]} 79. Qb1 {[%emt 0:00:56]} Kg7 {[%emt 0:00:00]} 80. Bc2 {[%emt 0:00:34]} Bd7 {[%emt 0:00:00]} 81. Rc3 {[%emt 0:01:35]} (81. Ra5 $16) 81... Bc6 {[%emt 0:00:00]} 82. Rf3 {[%emt 0:01:20]} Bd7 {[%emt 0:00:00] [#]} (82... a5 $11) 83. Qf1 {[%emt 0:00:23]} ({White should try} 83. Ra3 $1 $16) 83... Qc6 {[%emt 0:00:00]} 84. Qb1 {[%emt 0:00:41]} (84. Bb3 $11 {feels stronger.}) 84... Qb7 {[%emt 0:00:00] [#]} 85. Ra3 $1 {[%emt 0:00:25]} Bc6 {[%emt 0:00:00]} 86. Ra5 {[%emt 0:00:41]} Rb8 {[%emt 0:00:00]} 87. Bd3 {[%emt 0:00:55]} Ra8 {[%emt 0:00:00]} 88. Qc2 {[%emt 0:00:41]} Kf8 {[%emt 0:00:00]} 89. Ra3 {[%emt 0:00:00]} Kg7 {[%emt 0:06:00]} 90. Qe2 {[%emt 0:00:48]} Bd7 {[%emt 0:00:00]} 91. Ra5 {[%emt 0:00:36]} Bc6 {[%emt 0:00:00]} 92. Kc3 {[%emt 0:00:50]} (92. Qf2 $16) 92... Rb8 {[%emt 0:00:00]} (92... d4+ $11 {remains equal.} 93. Kb2 Rd8) 93. Qc2 {[%emt 0:00:16]} (93. Qf2 $16) 93... Bd7 {[%emt 0:00:00]} (93... d4+ $11 94. Kb2 Rd8) 94. Qb1 {[%emt 0:00:13]} (94. Qf2 $16) 94... Ra8 {[%emt 0:00:00][%cal Od5d4]} 95. Qf1 {[%emt 0:00:31]} Rb8 {[%emt 0:00:00]} (95... d4+ $1 $11 {keeps the balance.} 96. Kxd4 Qd5+ 97. Kc3 Bc6) 96. Bc2 {[%emt 0:01:14]} (96. Qg1 $16) 96... Bc6 {[%emt 0:00:00] Weighted Error Value: White=0.39/Black=0.39} (96... d4+ $1 $11 97. Kxd4 Bc6) 1/2-1/2

[Event "39th OBSenEM 2023"]
[Site "Berlin"]
[Date "2023.01.26"]
[Round "3.1"]
[White "Jandke, Manfred"]
[Black "Koehler, Gerhard"]
[Result "1/2-1/2"]
[ECO "E60"]
[WhiteElo "2061"]
[BlackElo "2241"]
[Annotator "TA"]
[PlyCount "40"]
[EventDate "2023.01.24"]
[EventType "swiss"]
[EventCountry "GER"]
[SourceTitle "playchess.com"]
[Source "ChessBase"]
[SourceQuality "1"]
[TimeControl "40/5400+30:1800+30"]

{[%evp 14,40,54,58,47,51,52,51,41,43,65,56,113,108,128,95,106,97,97,96,94,103,109,97,100,56,63,62,31]} 1. c4 {[%emt 0:00:09]} Nf6 {[%emt 0:00:10]} 2. g3 {[%emt 0:00:07]} g6 {[%emt 0:00:17]} 3. Bg2 {[%emt 0:00:14]} Bg7 {[%emt 0:00:08]} 4. Nf3 {[%emt 0:00:21]} O-O {[%emt 0:00:20]} 5. d4 {[%emt 0:00:18]} d6 {[%emt 0:00:14]} 6. O-O {[%emt 0:00:11]} Nc6 {[%emt 0:00:11]} 7. b3 {[%emt 0:00:52]} a6 {[%emt 0:05:42]} 8. Bb2 {[%emt 0:02:30]} Rb8 {[%emt 0:00:21] E60: King's Indian: Unusual lines and Fianchetto Variation without Nc3.} 9. Qc1 {[%emt 0:04:36]} Bd7 {[%emt 0:02:07]} 10. Rd1 {[%emt 0:02:06] [#]} Qc8 $146 {[%emt 0:04:13]} ({Predecessor:} 10... b5 11. d5 Na5 12. c5 dxc5 13. Qxc5 Nc4 14. Bd4 Ne4 15. Qb4 e5 16. Ba7 a5 {1-0 Dreev,A (2657)-Eminov,O (2291) TUR-chT 1st League 2018 (8.1)}) 11. d5 {[%emt 0:06:23]} Na7 {[%emt 0:01:02]} 12. e4 {[%emt 0:04:29][%cal Be2e4,Be4e5][%mdl 32]} c5 {[%emt 0:05:10]} (12... e5 $14) 13. e5 $16 {[%emt 0:04:07]} Ne8 {[%emt 0:05:35]} 14. a4 {[%emt 0:13:52]} Bg4 {[%emt 0:08:07]} 15. Re1 {[%emt 0:06:00]} Bxf3 {[%emt 0:17:56]} 16. Bxf3 {[%emt 0:00:16]} dxe5 {[%emt 0:00:44]} 17. Bxe5 {[%emt 0:03:35]} Bxe5 {[%emt 0:00:15]} 18. Rxe5 {[%emt 0:00:16]} Qc7 {[%emt 0:00:07]} 19. Qe3 {[%emt 0:01:45]} Nc8 {[%emt 0:00:37]} 20. Nc3 {[%emt 0:05:47][%cal Od5d6] White is more active.} Ned6 {[%emt 0:47:14] Weighted Error Value: White=0.09 (flawless) /Black=0.07 (flawless)} 1/2-1/2

[Event "39th OBSenEM 2023"]
[Site "Berlin"]
[Date "2023.01.26"]
[Round "3.2"]
[White "Hess, Christian"]
[Black "Wolf, Christian"]
[Result "1/2-1/2"]
[ECO "D30"]
[WhiteElo "2215"]
[BlackElo "2083"]
[Annotator "TA"]
[PlyCount "79"]
[EventDate "2023.01.24"]
[EventType "swiss"]
[EventCountry "GER"]
[SourceTitle "playchess.com"]
[Source "ChessBase"]
[SourceQuality "1"]
[TimeControl "40/5400+30:1800+30"]

{[%evp 22,79,8,12,22,6,10,3,5,0,0,0,12,0,0,0,0,-19,0,0,21,0,234,238,233,165,250,91,91,80,77,13,13,-17,-15,-10,-16,-18,8,0,22,4,233,0,77,-485,-450,-426,-90,-100,-28,-98,-91,-83,-21,-83,-20,-20,-21,-22]} 1. Nf3 {[%emt 0:00:07]} d5 {[%emt 0:00:14]} 2. e3 {[%emt 0:00:23]} Nf6 {[%emt 0:00:52]} 3. c4 {[%emt 0:00:26]} e6 {[%emt 0:00:43]} 4. d4 {[%emt 0:00:30]} Nbd7 {[%emt 0:04:37]} 5. Nbd2 {[%emt 0:04:32]} Be7 {[%emt 0:04:34]} 6. b3 {[%emt 0:02:01]} b6 {[%emt 0:02:06]} 7. Bb2 {[%emt 0:04:47]} Bb7 {[%emt 0:00:56]} 8. Bd3 {[%emt 0:00:38]} dxc4 {[%emt 0:04:21]} 9. bxc4 {[%emt 0:03:28]} c5 {[%emt 0:00:37]} 10. O-O {[%emt 0:00:47]} O-O {[%emt 0:02:25]} 11. Qe2 {[%emt 0:01:41]} cxd4 {[%emt 0:04:31]} 12. exd4 {[%emt 0:00:10]} Re8 {[%emt 0:00:38] D30: Queen's Gambit Declined: Systems without Nc3.} 13. Rad1 {[%emt 0:09:56]} Qc7 {[%emt 0:02:52]} 14. Rfe1 {[%emt 0:05:36]} Rad8 {[%emt 0:06:56] [#]} 15. Rc1 $146 {[%emt 0:07:50]} ({Predecessor:} 15. h3 Nh5 16. Bb1 Nf4 17. Qf1 Nf6 18. Re3 Bd6 19. g3 {½-½ Shaposhnikov,E (2550)-Pashikian,A (2525) Saratov Aratovsky Memorial 6th 2006 (7)}) 15... Qf4 {[%emt 0:10:35]} 16. h3 {[%emt 0:07:00]} Bb4 {[%emt 0:02:57][%cal Oe6e5] aiming for ...e5!} 17. Red1 {[%emt 0:01:25]} Qb8 {[%emt 0:06:29]} 18. Rb1 {[%emt 0:06:20]} Qa8 {[%emt 0:01:13]} 19. Qf1 {[%emt 0:05:36]} Bd6 {[%emt 0:02:16]} (19... Nh5 {simplifies} 20. Bc1 Bxd2 21. Nxd2 Bxg2 22. Bxh7+ Kxh7 23. Qxg2 Qxg2+ 24. Kxg2 Nf4+) 20. Re1 {[%emt 0:02:54]} Nh5 {[%emt 0:07:49]} 21. Ng5 {[%emt 0:06:07]} (21. Be4 {simplifies} Nhf6 22. Bxb7 Qxb7 23. Qe2) 21... Nf4 $2 {[%emt 0:03:26]} (21... Ndf6 $11) 22. Bxh7+ $18 {[%emt 0:00:49]} (22. Nxh7 $2 Bxg2 23. Be4 Bxf1 $19) 22... Kf8 {[%emt 0:03:24][%cal Rb7g2]} 23. Be4 {[%emt 0:02:59] Threatens to win with g3.} e5 {[%emt 0:03:44] [#]} (23... Nf6 $142) 24. c5 $2 {[%emt 0:04:32]} Be7 $16 {[%emt 0:01:41]} 25. Bxb7 {[%emt 0:05:44]} (25. Ndf3 {feels hotter.} Bxe4 26. Rxe4 Bxg5 27. Nxg5 f6 28. Qc4) 25... Qxb7 {[%emt 0:00:03]} 26. Nde4 {[%emt 0:02:47]} (26. Ndf3 $1 $16) 26... exd4 $1 $11 {[%emt 0:03:35]} 27. Bxd4 {[%emt 0:09:30]} (27. g3 $5 {[%cal Rg3f4]} Ne6 28. Nxe6+ fxe6 29. cxb6 $16 (29. Bxd4 e5 $11)) 27... Bxg5 {[%emt 0:02:32]} 28. Nxg5 {[%emt 0:00:12]} (28. c6 Qxc6 29. Nxg5 Qg6 $17) 28... Qd5 {[%emt 0:00:14]} 29. Nf3 {[%emt 0:03:20][%cal Rc5b6] Some like it hot} bxc5 {[%emt 0:03:07]} 30. Be3 {[%emt 0:00:23]} Nxh3+ {[%emt 0:01:47][%mdl 64] Deflection. Excellent horsemanship.} 31. Kh2 $1 {[%emt 0:01:06]} Qh5 $2 {[%emt 0:00:12]} (31... Nf6 $11) 32. Kg3 $2 {[%emt 0:01:27]} (32. g4 $18 Qxg4 33. Qxh3 Qxh3+ 34. Kxh3) 32... Re6 {[%emt 0:01:43]} (32... Qg6+ $1 $11 33. Kxh3 (33. Kh2 Qg4 $11) 33... Qh5+ 34. Nh4 g5 35. Bxg5 Qxg5) 33. Bxc5+ $2 {[%emt 0:00:44][%mdl 8192]} (33. gxh3 $16 {keeps the pressure on. And now Bg5 would win.} Rg6+ 34. Ng5 (34. Bg5 Rxg5+ 35. Nxg5 Qxg5+ 36. Kh2 Qf4+ 37. Kh1 Nf6 $14)) 33... Nxc5 $19 {[%emt 0:02:27]} ({Stronger than} 33... Qxc5 34. Rxe6 Nxf2 35. Qxf2 $11 (35. Ree1 Nf6 $17)) 34. Rxe6 {[%emt 0:00:06] [#] Re5 would be deadly.} Nxe6 {[%emt 0:00:10]} ({Not} 34... fxe6 35. gxh3 Nd3 36. Rb7 $17) (34... Ng5 $1 $19 {[%cal Rg5e6] has better winning chances.} 35. Qh1 Qxh1 36. Rxh1 Ngxe6) 35. gxh3 $17 {[%emt 0:00:17]} Ng5 {[%emt 0:02:10]} (35... Qg6+ $17 36. Kh2 Nf4) 36. Nxg5 {[%emt 0:01:14]} (36. Rb3 $1 $11) 36... Qxg5+ {[%emt 0:00:02]} 37. Kh2 {[%emt 0:00:10] [#]} Qf4+ {[%emt 0:00:32]} (37... Qd2 $1 $17 38. a3 Qd6+ 39. Kg2 Kg8) 38. Kg2 {[%emt 0:00:35]} (38. Kg1 $11 {remains equal.}) 38... Rd5 {[%emt 0:00:29]} (38... Rd2 $17 39. a4 Ra2) 39. Rb3 {[%emt 0:00:26]} Qe4+ {[%emt 0:01:53]} 40. Kh2 {[%emt 0:01:07] What a bad dream for Black.   Weighted Error Value: White=0.47/Black=0.54} 1/2-1/2

[Event "39th OBSenEM 2023"]
[Site "Berlin"]
[Date "2023.01.26"]
[Round "3.4"]
[White "Zaeske, Winfried"]
[Black "Syre, Christian"]
[Result "0-1"]
[ECO "B07"]
[WhiteElo "1985"]
[BlackElo "2197"]
[Annotator "TA"]
[PlyCount "62"]
[EventDate "2023.01.24"]
[EventType "swiss"]
[EventCountry "GER"]
[SourceTitle "playchess.com"]
[Source "ChessBase"]
[SourceQuality "1"]
[TimeControl "40/5400+30:1800+30"]

{[%evp 11,62,43,44,30,75,69,57,41,47,52,91,64,83,-28,-23,-31,-4,-75,0,-122,-121,-143,-56,-451,-441,-452,-462,-485,-484,-558,-549,-684,-666,-749,-744,-733,-730,-703,-568,-764,-693,-668,-612,-788,-620,-744,0,-738,-732,-720,-704,-702,-704]} 1. e4 {[%emt 0:00:09]} d6 {[%emt 0:01:08]} 2. d4 {[%emt 0:00:11]} Nf6 {[%emt 0:00:08]} 3. Nc3 {[%emt 0:00:10]} g6 {[%emt 0:00:02]} 4. Bg5 {[%emt 0:00:26][%cal Bc1g5,Bg5f4,Bf4g3][%mdl 32]} c6 {[%emt 0:01:07]} 5. Qd2 {[%emt 0:02:53]} b5 {[%emt 0:02:02]} 6. Bd3 {[%emt 0:02:37]} Nbd7 {[%emt 0:04:26]} 7. Nf3 {[%emt 0:01:48] was the old line (7.f4). B07: Pirc Defence: Miscellaneous Systems.} h6 {[%emt 0:12:36]} 8. Bf4 {[%emt 0:02:23]} g5 {[%emt 0:00:19]} 9. Bg3 {[%emt 0:05:58] White is slightly better.} Nh5 {[%emt 0:00:05] [#]} 10. e5 $146 {[%emt 0:01:43]} ({Predecessor:} 10. a4 b4 11. Nd1 a5 12. Ne3 Nb6 13. O-O Bg7 14. c3 bxc3 15. bxc3 Qc7 16. Qe2 {0-1 Santo Roman,M (2495)-Zaichik,G (2470) Olympiad-30 Manila 1992 (11.4)}) 10... Nb6 {[%emt 0:29:15]} 11. Qe2 {[%emt 0:14:09]} d5 {[%emt 0:10:39] [#]} 12. e6 {[%emt 0:05:55]} Bxe6 $11 {[%emt 0:00:18]} 13. Ne5 {[%emt 0:00:14][%csl LRc6,LRh5]} Nxg3 {[%emt 0:00:13]} 14. fxg3 {[%emt 0:00:47]} (14. hxg3 $11 {keeps the balance.} Qd6 15. Nxc6) 14... Rc8 {[%emt 0:05:55]} (14... Qd6 $17 {White must now prevent ...b4.} 15. Nxc6 b4) 15. Rf1 {[%emt 0:08:14]} (15. Ng6 $1 $11 Rg8 16. Nxf8 Rxf8 17. O-O) 15... Bg7 $17 {[%emt 0:01:14]} 16. O-O-O {[%emt 0:14:47]} Nc4 {[%emt 0:06:28]} (16... b4 $17 17. Nb1 Nd7) 17. Nxf7 $2 {[%emt 0:01:58][%mdl 8192]} Bxf7 $19 {[%emt 0:00:24]} 18. Rxf7 {[%emt 0:01:09]} Kxf7 {[%emt 0:00:13][%cal Be8f7,Bf7g7,Bg7f8][%mdl 32]} 19. Rf1+ {[%emt 0:04:39]} Bf6 {[%emt 0:00:58]} 20. Bf5 {[%emt 0:00:46] [#]} Kg7 $1 {[%emt 0:10:11]} 21. Qf3 {[%emt 0:05:00] [#]} (21. Bxc8 Qxc8) 21... Qd6 $1 {[%emt 0:09:02]} 22. Ne2 {[%emt 0:01:37]} (22. Bxc8 Rxc8) 22... Rcf8 {[%emt 0:02:08]} 23. Qh5 {[%emt 0:00:39]} Rfg8 {[%emt 0:00:21]} ({Not} 23... Kg8 24. Qg6+ Bg7 25. Be6+ $18) 24. Bd3 {[%emt 0:03:30]} Kf8 {[%emt 0:00:37]} 25. Qg4 {[%emt 0:00:59]} h5 {[%emt 0:00:14]} 26. Qf3 {[%emt 0:01:00]} Qb4 {[%emt 0:00:17]} 27. b3 {[%emt 0:01:51]} Qd2+ {[%emt 0:00:39]} 28. Kb1 {[%emt 0:00:21]} Qb4 {[%emt 0:00:20] Threatens to win with ...Nd2+.} 29. Kc1 {[%emt 0:00:31]} Nd2 {[%emt 0:00:20][%cal Bc4d2,Bd2f3,Bf3h2][%mdl 32] Black is clearly winning.} 30. c3 {[%emt 0:00:44]} Nxf3 {[%emt 0:00:08]} 31. cxb4 {[%emt 0:00:04]} Nxh2 {[%emt 0:00:11] Weighted Error Value: White=0.71/Black=0.29 (precise)} 0-1

[Event "39th OBSenEM 2023"]
[Site "Berlin"]
[Date "2023.01.27"]
[Round "4.1"]
[White "Syre, Christian"]
[Black "Niehaus, Frank"]
[Result "1/2-1/2"]
[ECO "E90"]
[WhiteElo "2197"]
[BlackElo "2089"]
[Annotator "TA"]
[PlyCount "47"]
[EventDate "2023.01.24"]
[EventType "swiss"]
[EventCountry "GER"]
[SourceTitle "playchess.com"]
[Source "ChessBase"]
[SourceQuality "1"]
[TimeControl "40/5400+30:1800+30"]

{[%evp 25,47,0,13,3,18,18,37,21,18,10,29,39,42,41,40,11,19,18,41,16,41,24,52,55]} 1. d4 {[%emt 0:00:02]} Nf6 {[%emt 0:00:22]} 2. c4 {[%emt 0:00:17]} g6 {[%emt 0:00:27]} 3. Nc3 {[%emt 0:00:07]} Bg7 {[%emt 0:00:17]} 4. e4 {[%emt 0:00:13]} d6 {[%emt 0:00:07]} 5. Nf3 {[%emt 0:00:16]} O-O {[%emt 0:00:16]} 6. h3 {[%emt 0:00:11]} e5 {[%emt 0:00:24]} 7. dxe5 {[%emt 0:00:16]} dxe5 {[%emt 0:00:06]} 8. Qxd8 {[%emt 0:00:15]} Rxd8 {[%emt 0:00:06]} 9. Bg5 {[%emt 0:00:08]} Re8 {[%emt 0:00:23]} 10. Nd5 {[%emt 0:00:24]} Nxd5 {[%emt 0:01:36]} 11. cxd5 {[%emt 0:00:13]} c6 {[%emt 0:00:47]} 12. Bc4 {[%emt 0:00:08]} cxd5 {[%emt 0:00:07]} 13. Bxd5 {[%emt 0:00:09]} Nc6 {[%emt 0:00:08] has lost popularity (13...Nd7).} 14. O-O {[%emt 0:00:24] [#] E90: King's Indian: Classical: Early deviations and 6 h3.} Nb4 $146 {[%emt 0:00:47]} ({Predecessor:} 14... Be6 15. Bxe6 Rxe6 16. Rfd1 f6 17. Be3 Bf8 18. Kf1 Rd6 19. Rxd6 Bxd6 20. Rd1 Rd8 21. Ke2 Kf7 {½-½ Georgiev,K (2657)-Spasov,V (2566) BUL-ch 77th Bankia 2013 (10)}) 15. Bc4 {[%emt 0:00:45]} h6 {[%emt 0:01:54]} 16. Bd2 {[%emt 0:00:26]} Nc6 {[%emt 0:01:58]} 17. Rac1 {[%emt 0:00:53]} a6 {[%emt 0:01:25]} 18. Rfd1 {[%emt 0:00:20]} Be6 {[%emt 0:01:03]} 19. Bxe6 {[%emt 0:01:00]} Rxe6 {[%emt 0:00:04]} 20. Be1 {[%emt 0:00:18]} Re7 {[%emt 0:02:57]} 21. Rd5 {[%emt 0:01:09]} Rae8 {[%emt 0:00:14]} 22. Kf1 {[%emt 0:00:38]} Kh7 {[%emt 0:00:50]} 23. a4 {[%emt 0:01:40]} Kg8 {[%emt 0:00:19]} 24. b4 {[%emt 1:32:18] Weighted Error Value: White=0.11 (very precise) /Black=0.15 (very precise)} 1/2-1/2